bitfinex/quotes_SOLUSD_20260202
["timestamp","ask_amount","ask_price","bid_price","bid_amount"]
[1770011937598,0.1,98.76,98.668,5.36086188]
[1770011937599,0.1,98.76,98.724,0.28432314]
[1770011937909,0.1,98.76,98.72,10.30579934]
[1770011938603,4.5,98.759,98.71,10.30579934]
[1770011938908,10.40579934,98.76,98.69,10.30579934]
[1770011938909,4.5,98.739,98.69,10.30579934]
[1770011940406,0.1,98.76,75.0,221.2]
[1770011940407,4.5,98.719,98.67,10.26812516]
[1770011941107,4.5,98.719,98.617,5.36086188]
[1770011941108,4.5,98.744,98.69,10.26812516]
[1770011941286,4.5,98.744,98.7,10.26812516]
[1770011941612,0.1,98.76,98.73,10.26812516]
[1770011942701,4.5,98.759,98.73,10.26812516]
[1770011942902,4.5,98.759,98.72,10.26812516]
[1770011943407,0.1,98.76,98.74,10.26812516]
[1770011943807,0.1,98.76,98.75,10.26812516]
[1770011944106,0.1,98.76,98.73,10.26812516]
[1770011944602,6.78985647,98.786,98.75,10.26812516]
[1770011944797,6.78985647,98.786,98.76,10.26812516]
[1770011945003,4.5,98.785,98.75,10.26812516]
[1770011945704,4.5,98.785,98.74,10.26812516]
[1770011945917,4.5,98.785,98.75,10.26812516]
[1770011946203,4.5,98.785,98.74,10.26812516]
[1770011948503,6.78985647,98.786,98.76,10.26812516]
[1770011948705,4.5,98.834,98.78,10.26812516]
[1770011948906,4.5,98.852,98.81,10.26812516]
[1770011949094,4.5,98.849,98.8,10.26812516]
[1770011949616,4.5,98.849,98.767,4.27527085]
[1770011949617,10.26812516,98.84,98.79,10.26812516]
[1770011949803,4.5,98.829,98.77,10.26812516]
[1770011950190,4.5,98.819,98.77,10.26812516]
[1770011950390,4.5,98.809,98.76,10.26812516]
[1770011950604,30.53,98.836,98.75,10.26812516]
[1770011950605,4.5,98.799,98.75,10.26812516]
[1770011951121,4.27527085,98.837,98.699,23.0]
[1770011951122,4.5,98.789,98.74,10.26812516]
[1770011952111,28.16,98.798,98.73,10.26812516]
[1770011952112,4.5,98.779,98.73,10.26812516]
[1770011952294,4.5,98.809,98.76,10.26812516]
[1770011952488,4.5,98.809,98.77,10.26812516]
[1770011953502,4.5,98.809,98.76,10.26812516]
[1770011954121,4.5,98.789,98.686,50.39395963]
[1770011954324,4.5,98.779,98.73,10.26812516]
[1770011954527,4.5,98.779,98.664,14.22663296]
[1770011954808,4.5,98.749,98.7,10.26812516]
[1770011955011,4.5,98.739,98.69,10.26812516]
[1770011955193,4.5,98.729,98.68,10.26812516]
[1770011955399,4.5,98.719,98.67,10.26812516]
[1770011955599,4.5,98.709,98.608,22.98]
[1770011955795,4.5,98.689,98.64,10.26812516]
[1770011955998,4.5,98.708,98.67,10.26812516]
[1770011956700,4.5,98.708,98.66,10.26812516]
[1770011957006,4.5,98.699,98.65,10.46812516]
[1770011957211,28.16,98.718,98.65,0.2]
[1770011957212,4.5,98.689,98.65,0.2]
[1770011957414,4.5,98.679,98.63,10.26812516]
[1770011957598,4.5,98.659,98.61,10.26812516]
[1770011957802,4.5,98.649,98.56,10.26812516]
[1770011958002,4.5,98.639,98.6,10.26812516]
[1770011959293,28.16,98.654,98.62,10.26812516]
[1770011959524,4.5,98.649,98.6,10.26812516]
[1770011960219,4.5,98.649,98.59,10.26812516]
[1770011960417,4.5,98.639,98.59,10.26812516]
[1770011960800,4.5,98.639,98.6,10.26812516]
[1770011961926,4.45158881,98.639,98.6,10.26812516]
[1770011964326,4.45158881,98.639,98.59,10.26812516]
[1770011965629,4.4757944,98.652,98.6,10.26812516]
[1770011965925,4.4757944,98.652,98.61,10.26812516]
[1770011966131,4.4757944,98.652,98.601,0.04841119]
[1770011966424,4.4757944,98.652,98.61,10.26812516]
[1770011966628,4.4757944,98.665,98.62,10.31653635]
[1770011967199,4.4757944,98.709,98.631,0.04841119]
[1770011967408,4.4757944,98.709,98.67,10.26812516]
[1770011967612,4.4757944,98.709,98.651,0.04841119]
[1770011967613,4.4757944,98.709,98.69,10.26812516]
[1770011967812,4.4757944,98.709,98.643,4.27527085]
[1770011967813,4.4757944,98.709,98.68,10.26812516]
[1770011968017,4.4757944,98.728,98.69,10.26812516]
[1770011968223,4.4757944,98.741,98.7,10.26812516]
[1770011968406,10.26812516,98.73,98.68,10.26812516]
[1770011968614,4.3225239,98.719,98.67,10.26812516]
[1770011969312,4.3225239,98.709,98.66,10.26812516]
[1770011969511,4.3225239,98.709,98.65,10.26812516]
[1770011969716,4.3225239,98.709,98.66,10.26812516]
[1770011969914,4.3225239,98.709,98.67,10.26812516]
[1770011970538,30.53,98.708,98.67,10.26812516]
[1770011970834,3.32733035,98.707,98.664,4.20172906]
[1770011971615,3.32733035,98.707,98.66,10.26812516]
[1770011971922,4.3225239,98.689,98.638,4.20172906]
[1770011972444,28.18,98.695,98.651,4.20172906]
[1770011972746,4.3225239,98.694,98.651,4.20172906]
[1770011974415,6.77383677,98.722,98.661,4.20172906]
[1770011974416,10.26812516,98.72,98.661,4.20172906]
[1770011974734,4.3225239,98.719,98.671,4.20172906]
[1770011975438,4.3225239,98.719,98.66,10.26812516]
[1770011975641,4.3225239,98.709,98.66,14.46985422]
[1770011975842,4.3225239,98.699,98.65,10.26812516]
[1770011976036,4.3225239,98.699,98.647,4.20172906]
[1770011976632,4.3225239,98.699,98.65,10.26812516]
[1770011976833,4.3225239,98.699,98.64,10.26812516]
[1770011977042,4.3225239,98.689,98.639,4.20172906]
[1770011977347,4.3225239,98.669,98.614,4.20172906]
[1770011977645,4.38763316,98.67,98.62,10.26812516]
[1770011977838,14.65575832,98.67,98.621,4.20049397]
[1770011978423,14.65575832,98.67,98.566,5.36086188]
[1770011978424,28.18,98.676,98.631,4.20049397]
[1770011978625,10.26812516,98.67,98.631,4.20049397]
[1770011978825,4.38763316,98.669,98.617,4.20049397]
[1770011979731,4.38763316,98.684,98.631,4.20049397]
[1770011980246,4.38763316,98.684,98.64,10.26812516]
[1770011980422,4.38763316,98.684,98.641,4.20049397]
[1770011980748,4.38763316,98.682,98.641,4.20049397]
[1770011981135,4.38763316,98.682,98.63,10.26812516]
[1770011981345,4.38763316,98.682,98.631,4.20049397]
[1770011982343,4.38763316,98.679,98.631,4.20049397]
[1770011983026,4.38763316,98.669,98.618,4.20049397]
[1770011983727,10.26812516,98.66,98.618,4.20049397]
[1770011983927,4.38763316,98.66,98.618,4.20049397]
[1770011984458,14.65575832,98.66,98.618,4.20049397]
[1770011984826,4.38763316,98.66,98.618,4.20049397]
[1770011985048,14.65575832,98.66,98.618,4.20049397]
[1770011985360,14.65575832,98.66,98.555,50.7238975]
[1770011985361,4.38763316,98.649,98.561,4.20049397]
[1770011985520,4.38763316,98.649,98.591,4.20049397]
[1770011985724,4.38763316,98.649,98.6,10.26812516]
[1770011986449,4.38763316,98.649,98.591,4.20049397]
[1770011988054,4.38763316,98.649,98.6,10.26812516]
[1770011989132,4.25699227,98.629,98.578,4.17652478]
[1770011989444,10.26812516,98.62,98.578,4.17652478]
[1770011989744,14.52511743,98.62,98.578,4.17652478]
[1770011989946,14.52511743,98.62,98.511,73.1425195]
[1770011989947,4.25699227,98.599,98.55,4.17652478]
[1770011990644,10.26812516,98.59,98.55,4.17652478]
[1770011990831,4.25699227,98.569,98.512,4.17652478]
[1770011991027,10.26812516,98.55,98.512,4.17652478]
[1770011991422,4.25699227,98.539,98.49,10.46812516]
[1770011991629,10.26812516,98.52,98.49,0.2]
[1770011991850,4.25699227,98.529,98.49,0.2]
[1770011993062,14.52511743,98.52,98.49,0.2]
[1770011993347,10.26812516,98.5,98.431,4.17652478]
[1770011993550,10.26812516,98.49,98.431,4.17652478]
[1770011993741,4.27527085,98.536,98.431,4.17652478]
[1770011993742,4.25699227,98.479,98.431,4.17652478]
[1770011994045,4.25699227,98.483,98.44,10.26812516]
[1770011994250,50.76622121,98.564,98.4,10.26812516]
[1770011994251,4.25699227,98.507,98.46,10.26812516]
[1770011994556,4.25699227,98.507,98.461,4.17652478]
[1770011995250,28.2,98.516,98.471,4.17652478]
[1770011995433,4.25699227,98.53,98.481,4.17652478]
[1770011995935,4.25699227,98.529,98.481,4.17652478]
[1770011996345,4.27527085,98.556,98.415,5.36086188]
[1770011996346,28.2,98.532,98.5,10.26812516]
[1770011996554,28.2,98.532,98.457,4.27527085]
[1770011996555,10.26812516,98.54,98.49,10.26812516]
[1770011996755,10.26812516,98.5,98.46,4.17652478]
[1770011997050,14.52511743,98.5,98.46,4.17652478]
[1770011997353,4.25699227,98.499,98.46,4.17652478]
[1770011997549,4.25699227,98.499,98.441,4.17652478]
[1770011997748,4.25699227,98.489,98.441,4.17652478]
[1770012000460,4.25699227,98.459,98.412,4.17652478]
[1770012001162,4.25699227,98.459,98.421,4.17652478]
[1770012001363,28.22,98.465,98.431,4.17652478]
[1770012001565,4.25699227,98.486,98.441,4.17652478]
[1770012001958,4.25699227,98.486,98.397,4.27527085]
[1770012001959,4.25699227,98.479,98.429,4.17652478]
[1770012002256,10.26812516,98.47,98.429,4.17652478]
[1770012002464,10.32225191,98.47,98.429,4.17652478]
[1770012002659,28.22,98.469,98.429,4.17652478]
[1770012002849,4.25699227,98.459,98.417,4.17652478]
[1770012003054,10.32225191,98.45,98.417,4.17652478]
[1770012003247,28.22,98.458,98.421,4.17652478]
[1770012003450,4.25699227,98.477,98.431,4.17652478]
[1770012004550,10.32225191,98.45,98.402,4.17652478]
[1770012004861,10.15197506,98.503,98.32,15.62847523]
[1770012004862,10.32225191,98.42,98.377,4.17652478]
[1770012005242,10.32225191,98.44,98.381,4.17652478]
[1770012005438,4.25699227,98.489,98.431,4.17652478]
[1770012005641,4.25699227,98.489,98.417,4.27527085]
[1770012005642,4.25699227,98.489,98.441,4.17652478]
[1770012005836,5.36086188,98.559,98.471,4.17652478]
[1770012006054,10.32225191,98.52,98.471,4.17652478]
[1770012006360,4.25699227,98.519,98.461,4.17652478]
[1770012006564,4.25699227,98.519,98.47,10.32225191]
[1770012006868,4.25699227,98.499,98.441,4.17652478]
[1770012007175,4.25699227,98.489,98.431,4.17652478]
[1770012007768,4.25699227,98.489,98.43,10.32225191]
[1770012007769,4.41990105,98.479,98.421,4.16088761]
[1770012007953,4.41990105,98.479,98.431,4.16088761]
[1770012008665,10.32225191,98.57,98.473,4.27527085]
[1770012008871,7.26364855,98.574,98.52,10.32225191]
[1770012009043,4.5,98.569,98.486,4.27527085]
[1770012009240,4.5,98.549,98.5,10.32225191]
[1770012009561,4.5,98.529,98.48,10.32225191]
[1770012010278,4.5,98.519,98.47,10.32225191]
[1770012010455,4.5,98.519,98.48,10.32225191]
[1770012010652,4.5,98.519,98.47,10.32225191]
[1770012011161,4.5,98.489,98.44,10.32225191]
[1770012011364,4.5,98.469,98.42,10.32225191]
[1770012011664,4.5,98.469,98.413,4.27527085]
[1770012011866,4.5,98.469,98.42,10.32225191]
[1770012012663,4.5,98.469,98.413,4.27527085]
[1770012013064,4.27527085,98.517,98.44,10.32225191]
[1770012013065,4.5,98.489,98.44,10.32225191]
[1770012013254,4.5,98.489,98.4,10.32225191]
[1770012013255,4.5,98.489,98.45,10.32225191]
[1770012013662,4.5,98.489,98.44,10.32225191]
[1770012014246,4.5,98.489,98.45,10.32225191]
[1770012014548,6.80340102,98.499,98.378,4.27527085]
[1770012014549,10.32225191,98.47,98.378,4.27527085]
[1770012014759,4.5,98.469,98.42,10.32225191]
[1770012014958,4.5,98.469,98.41,10.32225191]
[1770012015167,4.5,98.449,98.4,10.32225191]
[1770012015672,4.5,98.439,98.39,10.32225191]
[1770012015986,4.5,98.453,98.403,4.27527085]
[1770012016159,4.5,98.453,98.41,10.32225191]
[1770012016564,4.5,98.449,98.4,10.32225191]
[1770012017168,4.5,98.429,98.309,50.39516747]
[1770012017473,4.5,98.429,98.39,10.32225191]
[1770012017675,4.5,98.429,98.38,10.32225191]
[1770012018579,4.5,98.429,98.39,10.32225191]
[1770012018785,4.5,98.429,98.4,10.32225191]
[1770012019282,28.24,98.435,98.36,10.32225191]
[1770012019283,4.5,98.419,98.36,10.32225191]
[1770012019495,4.5,98.409,98.35,10.32225191]
[1770012019771,4.5,98.409,98.38,10.32225191]
[1770012019982,4.5,98.422,98.38,10.32225191]
[1770012020880,4.27527085,98.465,98.346,4.27527085]
[1770012020881,4.5,98.419,98.37,10.32225191]
[1770012021060,4.5,98.419,98.38,10.32225191]
[1770012021376,4.5,98.433,98.4,10.32225191]
[1770012021886,4.5,98.433,98.38,10.32225191]
[1770012022602,28.24,98.441,98.33,0.2]
[1770012022603,4.5,98.409,98.363,4.27527085]
[1770012022954,28.24,98.421,98.363,4.27527085]
[1770012023158,28.24,98.421,98.39,10.32225191]
[1770012024082,4.5,98.445,98.41,10.32225191]
[1770012024267,4.5,98.459,98.41,10.32225191]
[1770012024572,4.5,98.459,98.42,10.32225191]
[1770012024869,4.5,98.459,98.377,0.28432314]
[1770012024870,4.5,98.489,98.44,10.32225191]
[1770012025268,4.5,98.489,98.45,10.32225191]
[1770012025465,11.28412827,98.504,98.47,10.32225191]
[1770012025667,5.31508223,98.574,98.47,10.32225191]
[1770012025668,4.5,98.529,98.47,10.32225191]
[1770012026776,4.5,98.529,98.48,10.32225191]
[1770012026996,10.32225191,98.51,98.446,4.27527085]
[1770012027273,4.5,98.499,98.45,10.32225191]
[1770012027484,4.5,98.499,98.44,10.32225191]
[1770012027776,32.51527085,98.535,98.402,23.0]
[1770012027777,4.5,98.479,98.423,4.27527085]
[1770012027983,4.5,98.479,98.43,10.32225191]
[1770012028274,4.5,98.479,98.44,10.32225191]
[1770012028859,4.5,98.536,98.473,4.27527085]
[1770012029183,4.5,98.536,98.49,10.32225191]
[1770012029477,4.5,98.536,98.48,10.32225191]
[1770012029680,4.5,98.536,98.49,10.32225191]
[1770012030065,4.5,98.536,98.51,10.32225191]
[1770012030266,28.24,98.548,98.5,10.32225191]
[1770012030669,28.24,98.548,98.51,10.32225191]
[1770012030873,30.53,98.631,98.52,10.32225191]
[1770012031191,30.53,98.631,98.458,5.36086188]
[1770012031192,10.32225191,98.53,98.446,2.17615765]
[1770012031362,10.32225191,98.48,98.42,10.32225191]
[1770012031562,10.32225191,98.47,98.414,2.17615765]
[1770012031966,10.32225191,98.47,98.42,10.32225191]
[1770012032165,4.41990105,98.557,98.451,2.17615765]
[1770012032371,4.41990105,98.519,98.48,10.32225191]
[1770012032594,4.41990105,98.519,98.46,10.32225191]
[1770012032880,4.41990105,98.509,98.45,10.32225191]
[1770012033084,4.41990105,98.499,98.443,4.27527085]
[1770012033680,10.32225191,98.49,98.443,4.27527085]
[1770012033888,4.41990105,98.489,98.436,2.17615765]
[1770012034196,4.41990105,98.489,98.433,4.27527085]
[1770012034372,10.32225191,98.5,98.441,2.17615765]
[1770012034570,28.24,98.505,98.451,2.17615765]
[1770012034888,28.24,98.505,98.46,10.32225191]
[1770012035071,4.41990105,98.531,98.48,10.32225191]
[1770012035270,4.41990105,98.531,98.481,2.17615765]
[1770012035473,4.41990105,98.509,98.447,2.17615765]
[1770012035777,4.41990105,98.509,98.453,4.27527085]
[1770012036176,10.32225191,98.5,98.45,10.32225191]
[1770012036384,4.41990105,98.479,98.43,10.32225191]
[1770012036899,4.41990105,98.479,98.433,4.27527085]
[1770012037188,4.41990105,98.459,98.407,2.17615765]
[1770012037498,4.41990105,98.459,98.413,4.27527085]
[1770012038795,10.32225191,98.46,98.377,5.36086188]
[1770012038796,4.33622585,98.449,98.38,4.27527085]
[1770012038997,10.32225191,98.42,98.357,2.17615765]
[1770012039292,4.33622585,98.419,98.364,2.17615765]
[1770012039896,10.32225191,98.41,98.364,2.17615765]
[1770012040189,4.33622585,98.419,98.364,2.17615765]
[1770012040371,14.65847776,98.43,98.371,2.17615765]
[1770012040699,4.33622585,98.429,98.371,2.17615765]
[1770012041193,10.32225191,98.42,98.371,2.17615765]
[1770012041394,4.33622585,98.429,98.371,2.17615765]
[1770012041773,4.33622585,98.429,98.38,10.32225191]
[1770012042097,4.33622585,98.449,98.393,4.27527085]
[1770012042672,4.33622585,98.449,98.4,10.32225191]
[1770012042977,4.33622585,98.466,98.411,2.17615765]
[1770012043791,4.33622585,98.459,98.411,2.17615765]
[1770012044296,4.33622585,98.439,98.393,4.27527085]
[1770012044495,4.33622585,98.453,98.4,10.32225191]
[1770012044692,4.33622585,98.453,98.41,10.32225191]
[1770012045194,4.33622585,98.45,98.4,10.32225191]
[1770012045382,10.32225191,98.46,98.41,10.32225191]
[1770012045583,4.33622585,98.463,98.42,10.32225191]
[1770012046487,28.24,98.475,98.424,2.17615765]
[1770012046696,4.33622585,98.51,98.46,10.32225191]
[1770012047075,4.33622585,98.51,98.47,10.32225191]
[1770012047271,4.1191296,98.529,98.48,10.32225191]
[1770012047493,4.1191296,98.545,98.5,10.32225191]
[1770012047703,10.32225191,98.57,98.52,10.32225191]
[1770012047871,24.42,98.687,98.54,10.32225191]
[1770012047872,4.1191296,98.587,98.54,10.32225191]
[1770012048377,4.1191296,98.579,98.52,10.32225191]
[1770012048576,4.1191296,98.579,98.486,5.36086188]
[1770012048577,10.32225191,98.55,98.5,10.32225191]
[1770012048799,4.1191296,98.549,98.503,4.27527085]
[1770012049177,10.32225191,98.57,98.51,10.32225191]
[1770012049377,4.1191296,98.563,98.51,10.32225191]
[1770012049577,4.1191296,98.563,98.52,10.32225191]
[1770012049778,4.1191296,98.563,98.51,10.32225191]
[1770012050275,4.1191296,98.563,98.506,2.17615765]
[1770012050276,4.1191296,98.563,98.52,10.32225191]
[1770012050885,0.1,98.58,98.531,2.17615765]
[1770012051085,4.1191296,98.569,98.516,2.17615765]
[1770012051278,4.1191296,98.559,98.505,4.27527085]
[1770012051479,4.1191296,98.549,98.493,4.27527085]
[1770012051796,4.1191296,98.499,98.441,2.17615765]
[1770012051996,4.1191296,98.479,98.427,2.17615765]
[1770012052293,4.1191296,98.459,98.4,10.32225191]
[1770012052494,4.1191296,98.459,98.413,4.27527085]
[1770012053081,4.1191296,98.459,98.41,10.32225191]
[1770012053297,4.1191296,98.439,98.371,2.17615765]
[1770012053509,10.32225191,98.48,98.371,2.17615765]
[1770012053510,4.1191296,98.429,98.371,2.17615765]
[1770012053702,4.1191296,98.429,98.373,4.27527085]
[1770012054800,4.1191296,98.429,98.38,10.32225191]
[1770012054994,4.1191296,98.429,98.371,2.17615765]
[1770012055300,4.1191296,98.429,98.373,4.27527085]
[1770012055497,4.1191296,98.445,98.39,10.32225191]
[1770012055684,4.1191296,98.439,98.39,10.32225191]
[1770012056097,4.1191296,98.419,98.373,4.27527085]
[1770012056396,4.1191296,98.419,98.36,10.32225191]
[1770012056701,4.1191296,98.399,98.35,10.32225191]
[1770012056904,4.1191296,98.399,98.36,10.32225191]
[1770012057096,4.1191296,98.399,98.353,4.27527085]
[1770012057395,4.1191296,98.399,98.35,10.32225191]
[1770012057597,4.1191296,98.399,98.353,4.27527085]
[1770012057800,4.1191296,98.379,98.32,10.32225191]
[1770012058006,4.1191296,98.379,98.323,4.27527085]
[1770012058202,4.1191296,98.369,98.31,10.32225191]
[1770012058424,10.32225191,98.34,98.292,2.17615765]
[1770012058585,4.1191296,98.339,98.285,4.27527085]
[1770012058788,10.32225191,98.34,98.291,4.37490875]
[1770012059090,10.32225191,98.32,98.28,0.2]
[1770012059292,10.32225191,98.32,98.28,4.57490875]
[1770012059498,10.32225191,98.33,98.28,4.57490875]
[1770012059687,10.32225191,98.33,98.281,4.37490875]
[1770012060008,10.32225191,98.32,98.28,0.2]
[1770012060209,4.0779383,98.334,98.28,0.2]
[1770012060210,10.32225191,98.31,98.281,4.37490875]
[1770012060416,10.32225191,98.34,98.281,4.37490875]
[1770012060719,10.32225191,98.3,98.28,0.2]
[1770012061085,4.0779383,98.289,98.26,0.0588087]
[1770012061285,10.32225191,98.32,98.25,0.05922061]
[1770012061286,10.32225191,98.27,98.25,0.05922061]
[1770012061481,28.26,98.288,98.25,0.05922061]
[1770012061709,10.32225191,98.29,98.25,0.05922061]
[1770012061911,10.32225191,98.3,98.251,4.37490875]
[1770012062121,28.26,98.314,98.221,4.37490875]
[1770012062122,10.32225191,98.27,98.221,4.37490875]
[1770012062283,10.32225191,98.25,98.206,4.37490875]
[1770012062613,10.36860009,98.27,98.227,4.37490875]
[1770012062820,3.99678732,98.279,98.23,10.36860009]
[1770012062982,3.99678732,98.279,98.231,4.37490875]
[1770012063914,10.36860009,98.27,98.231,4.37490875]
[1770012064097,10.36860009,98.27,98.217,4.37490875]
[1770012064611,10.36860009,98.28,98.231,4.37490875]
[1770012064916,3.99678732,98.259,98.199,4.37490875]
[1770012065211,10.36860009,98.26,98.216,4.67801095]
[1770012065409,10.36860009,98.27,98.221,4.37490875]
[1770012065984,10.36860009,98.28,98.221,4.37490875]
[1770012066192,10.36860009,98.26,98.221,4.37490875]
[1770012066399,10.36860009,98.25,98.216,0.3031022]
[1770012066890,10.36860009,98.26,98.216,4.67801095]
[1770012067527,3.99678732,98.305,98.251,4.37490875]
[1770012067809,10.36860009,98.33,98.271,4.31954349]
[1770012068000,10.36860009,98.32,98.271,4.31954349]
[1770012068559,3.99678732,98.299,98.24,10.36860009]
[1770012068713,3.99678732,98.299,98.241,4.31954349]
[1770012069012,10.36860009,98.28,98.241,4.31954349]
[1770012069214,4.27527085,98.316,98.221,4.31954349]
[1770012069215,10.36860009,98.27,98.221,4.31954349]
[1770012070015,3.99678732,98.292,98.241,4.31954349]
[1770012070213,28.28,98.299,98.251,4.31954349]
[1770012070510,28.28,98.299,98.26,10.36860009]
[1770012070715,32.27678732,98.299,98.247,4.31954349]
[1770012070927,10.36860009,98.29,98.247,4.31954349]
[1770012071718,3.99678732,98.298,98.247,4.31954349]
[1770012071919,10.36860009,98.29,98.247,4.31954349]
[1770012072414,10.36860009,98.29,98.217,4.31954349]
[1770012072621,10.36860009,98.25,98.216,0.3031022]
[1770012073125,10.36860009,98.27,98.217,4.31954349]
[1770012073336,10.36860009,98.28,98.221,4.31954349]
[1770012073533,28.28,98.299,98.216,0.3031022]
[1770012073534,28.28,98.299,98.241,4.31954349]
[1770012073704,28.28,98.299,98.251,4.31954349]
[1770012074517,28.28,98.303,98.251,4.31954349]
[1770012075223,28.28,98.303,98.271,4.31954349]
[1770012075432,25.40745028,98.397,98.224,5.36086188]
[1770012075433,3.99678732,98.339,98.29,10.36860009]
[1770012075714,10.36860009,98.31,98.262,4.31954349]
[1770012076203,3.99678732,98.319,98.262,4.31954349]
[1770012076806,10.36860009,98.33,98.271,4.31954349]
[1770012077006,14.36538741,98.32,98.271,4.31954349]
[1770012077524,10.36860009,98.31,98.271,4.31954349]
[1770012077899,10.36860009,98.31,98.257,4.31954349]
[1770012078308,10.36860009,98.27,98.227,4.31954349]
[1770012078495,10.36860009,98.25,98.216,0.3031022]
[1770012078700,35.89086188,98.226,98.16,0.2]
[1770012078897,10.36860009,98.17,98.143,4.31954349]
[1770012079330,10.36860009,98.15,98.081,4.31954349]
[1770012079628,3.30071614,98.16,98.081,4.31954349]
[1770012079629,10.36860009,98.13,98.081,4.31954349]
[1770012079825,10.36860009,98.13,98.066,4.31954349]
[1770012079826,10.36860009,98.12,98.066,4.31954349]
[1770012080030,10.36860009,98.13,98.071,4.31954349]
[1770012080320,28.3,98.132,98.071,4.31954349]
[1770012080526,10.36860009,98.13,98.071,4.31954349]
[1770012081109,10.36860009,98.12,98.071,4.31954349]
[1770012081303,28.3,98.132,98.056,4.31954349]
[1770012081304,10.36860009,98.1,98.056,4.31954349]
[1770012081722,10.36860009,98.1,98.053,4.27527085]
[1770012082023,10.36860009,98.1,98.061,4.31954349]
[1770012082232,10.36860009,98.11,98.061,4.31954349]
[1770012082526,3.30071614,98.122,98.061,4.31954349]
[1770012082527,10.36860009,98.1,98.061,4.31954349]
[1770012082702,28.3,98.123,98.071,4.31954349]
[1770012083331,10.36860009,98.12,98.071,4.31954349]
[1770012083514,10.36860009,98.11,98.071,4.31954349]
[1770012083711,28.3,98.123,98.056,4.31954349]
[1770012083712,3.30071614,98.114,98.056,4.31954349]
[1770012083922,10.36860009,98.11,98.061,4.31954349]
[1770012084625,10.36860009,98.12,98.061,4.31954349]
[1770012084920,28.3,98.123,98.081,4.31954349]
[1770012085124,10.36860009,98.11,98.05,4.31954349]
[1770012085326,3.30071614,98.119,98.054,4.31954349]
[1770012085524,28.3,98.123,98.074,4.31954349]
[1770012085711,10.36860009,98.12,98.074,4.31954349]
[1770012086112,28.3,98.123,98.074,4.31954349]
[1770012086316,28.3,98.123,98.081,4.31954349]
[1770012086519,10.36860009,98.12,98.081,4.31954349]
[1770012086926,28.3,98.123,98.081,4.31954349]
[1770012087427,23.12463882,98.129,98.091,4.31954349]
[1770012088111,8.03380363,98.129,98.102,4.31954349]
[1770012088309,8.03380363,98.129,98.11,10.36860009]
[1770012088516,8.03380363,98.129,98.12,10.36860009]
[1770012089330,8.03380363,98.129,98.11,10.36860009]
[1770012090033,4.5,98.128,98.083,4.27527085]
[1770012090231,8.03380363,98.129,98.083,4.27527085]
[1770012090536,4.5,98.16,98.12,10.36860009]
[1770012090826,4.5,98.178,98.13,10.36860009]
[1770012091053,4.5,98.178,98.123,4.27527085]
[1770012091229,4.5,98.178,98.08,10.36860009]
[1770012091230,4.5,98.149,98.093,4.27527085]
[1770012092208,4.5,98.129,98.083,4.27527085]
[1770012092819,4.5,98.119,98.06,10.36860009]
[1770012093131,4.5,98.119,98.07,10.36860009]
[1770012093334,4.5,98.119,98.08,10.36860009]
[1770012093835,4.5,98.139,98.08,10.36860009]
[1770012094033,4.5,98.159,98.1,10.36860009]
[1770012094937,4.5,98.109,98.024,5.36086188]
[1770012095235,10.36860009,98.08,98.02,10.67170229]
[1770012095416,4.5,98.069,98.02,0.3031022]
[1770012096022,10.36860009,98.04,98.02,0.3031022]
[1770012096226,4.3484489,98.054,98.0,10.36860009]
[1770012096433,14.71704899,98.07,98.014,0.3031022]
[1770012096637,10.18869462,98.148,97.982,0.3031022]
[1770012096638,30.53,98.059,97.982,0.3031022]
[1770012096836,30.53,98.059,97.859,30.53]
[1770012096837,4.3484489,98.029,97.97,10.46860009]
[1770012097043,4.3484489,98.029,97.973,4.27527085]
[1770012098037,28.34,98.077,97.97,0.1]
[1770012098038,4.43222203,98.019,97.97,0.1]
[1770012098244,4.43222203,98.019,97.97,10.46860009]
[1770012098562,28.34,98.077,97.96,0.2]
[1770012098563,4.43222203,97.989,97.96,0.2]
[1770012098748,4.43222203,97.979,97.96,0.2]
[1770012099043,4.43222203,97.969,97.91,10.36860009]
[1770012099244,4.43222203,97.959,97.9,10.36860009]
[1770012099422,4.43222203,97.939,97.869,0.5031022]
[1770012099741,10.36860009,97.94,97.789,165.2]
[1770012099742,4.43222203,97.919,97.86,10.36860009]
[1770012100042,4.43222203,97.919,97.87,10.36860009]
[1770012100338,4.43222203,97.919,97.86,10.36860009]
[1770012100531,4.43222203,97.889,97.83,15.87201182]
[1770012100730,4.43222203,97.889,97.822,0.5031022]
[1770012100731,4.43222203,97.889,97.84,15.87201182]
[1770012100922,15.87201182,97.89,97.83,15.87201182]